[Event "Early-Titled-Tuesday-Blitz-August-29-2023"]
[Site "Chess.com"]
[Date "2023.08.29"]
[Round "7"]
[White "Veleamater"]
[Black "JiiHart"]
[Result "1-0"]
[WhiteElo "2324"]
[BlackElo "2102"]
[TimeControl "180+1"]
[EndTime "9:14:42 PDT"]
[Termination "Veleamater won on time"]

1. g3 {[%clk 0:03:00.9]} 1... g6 {[%clk 0:02:59.6]} 2. Bg2 {[%clk 0:03:01.1]}
2... Bg7 {[%clk 0:03:00.1]} 3. d3 {[%clk 0:03:01.4]} 3... Nf6 {[%clk 0:02:58.3]}
4. Nf3 {[%clk 0:03:01.9]} 4... d5 {[%clk 0:02:55.3]} 5. O-O {[%clk 0:03:01.9]}
5... c5 {[%clk 0:02:54.4]} 6. h3 {[%clk 0:03:02.2]} 6... Nc6 {[%clk 0:02:54]} 7.
Nc3 {[%clk 0:03:02.3]} 7... h6 {[%clk 0:02:51.4]} 8. e4 {[%clk 0:03:02.4]} 8...
dxe4 {[%clk 0:02:49.8]} 9. dxe4 {[%clk 0:03:02.5]} 9... Qxd1 {[%clk 0:02:48.8]}
10. Rxd1 {[%clk 0:03:02.3]} 10... Be6 {[%clk 0:02:46.6]} 11. Be3 {[%clk
0:03:02.2]} 11... Nd7 {[%clk 0:02:43.7]} 12. Ne1 {[%clk 0:03:02.2]} 12... Bxc3
{[%clk 0:02:39.9]} 13. bxc3 {[%clk 0:03:01.6]} 13... g5 {[%clk 0:02:22]} 14. Bf1
{[%clk 0:02:51.4]} 14... a6 {[%clk 0:02:17]} 15. a4 {[%clk 0:02:49.8]} 15... O-O
{[%clk 0:02:15.1]} 16. f4 {[%clk 0:02:48]} 16... f6 {[%clk 0:02:14.5]} 17. Kf2
{[%clk 0:02:46.7]} 17... Rfd8 {[%clk 0:01:50]} 18. a5 {[%clk 0:02:40.5]} 18...
Rac8 {[%clk 0:01:38.3]} 19. Nf3 {[%clk 0:02:37.5]} 19... Kg7 {[%clk 0:01:08]}
20. Bg2 {[%clk 0:02:33.1]} 20... Bf7 {[%clk 0:00:55.5]} 21. Nd2 {[%clk
0:02:25.5]} 21... e5 {[%clk 0:00:41.4]} 22. f5 {[%clk 0:02:21.9]} 22... Ne7
{[%clk 0:00:29.4]} 23. Bf1 {[%clk 0:02:20.7]} 23... Rc7 {[%clk 0:00:24.4]} 24.
Bc4 {[%clk 0:02:19.9]} 24... Rdc8 {[%clk 0:00:20.5]} 25. Bxf7 {[%clk 0:02:19.3]}
25... Kxf7 {[%clk 0:00:20.4]} 26. Nc4 {[%clk 0:02:19.8]} 26... Rd8 {[%clk
0:00:09.3]} 27. Rd6 {[%clk 0:02:14.6]} 27... Nc8 {[%clk 0:00:07]} 28. Rd5 {[%clk
0:02:10.2]} 28... Ke7 {[%clk 0:00:06.9]} 29. Rad1 {[%clk 0:02:09.2]} 29... b5
{[%clk 0:00:03.3]} 30. axb6 {[%clk 0:02:08.4]} 30... Ncxb6 {[%clk 0:00:03.7]}
31. Nxb6 {[%clk 0:02:07.9]} 1-0

[Event "Early-Titled-Tuesday-Blitz-August-29-2023"]
[Site "Chess.com"]
[Date "2023.08.29"]
[Round "7"]
[White "Alphafischer2019"]
[Black "Goryachkina"]
[Result "1/2-1/2"]
[WhiteElo "2531"]
[BlackElo "2647"]
[TimeControl "180+1"]
[EndTime "9:14:44 PDT"]
[Termination "Game drawn by repetition"]

1. d4 {[%clk 0:02:57.9]} 1... Nf6 {[%clk 0:02:57.2]} 2. Bf4 {[%clk 0:02:58.2]}
2... d5 {[%clk 0:02:54.1]} 3. e3 {[%clk 0:02:55.8]} 3... e6 {[%clk 0:02:54.1]}
4. Nf3 {[%clk 0:02:55]} 4... c5 {[%clk 0:02:52.1]} 5. c3 {[%clk 0:02:54.9]} 5...
Bd6 {[%clk 0:02:51.4]} 6. Bg3 {[%clk 0:02:53.9]} 6... O-O {[%clk 0:02:50.1]} 7.
Nbd2 {[%clk 0:02:52.7]} 7... Qc7 {[%clk 0:02:38.7]} 8. dxc5 {[%clk 0:02:52.7]}
8... Qxc5 {[%clk 0:02:38.1]} 9. b4 {[%clk 0:02:53.3]} 9... Qc7 {[%clk
0:02:36.5]} 10. c4 {[%clk 0:02:50.9]} 10... dxc4 {[%clk 0:02:26.4]} 11. Bxc4
{[%clk 0:02:47.3]} 11... Nc6 {[%clk 0:02:12.1]} 12. a3 {[%clk 0:02:42.3]} 12...
Rd8 {[%clk 0:02:11]} 13. Qb3 {[%clk 0:02:30]} 13... Ne5 {[%clk 0:02:01.4]} 14.
Be2 {[%clk 0:02:12]} 14... Nxf3+ {[%clk 0:01:50.9]} 15. Nxf3 {[%clk 0:02:08.2]}
15... Bd7 {[%clk 0:01:42.5]} 16. O-O {[%clk 0:02:04.5]} 16... Bxg3 {[%clk
0:01:40.9]} 17. hxg3 {[%clk 0:02:04.3]} 17... Rac8 {[%clk 0:01:41]} 18. Qb2
{[%clk 0:01:28.6]} 18... Qc2 {[%clk 0:01:28.3]} 19. Qxc2 {[%clk 0:01:27.2]}
19... Rxc2 {[%clk 0:01:28.1]} 20. Nd4 {[%clk 0:01:28]} 20... Rc3 {[%clk
0:01:27.1]} 21. Rfd1 {[%clk 0:01:24.8]} 21... Ba4 {[%clk 0:01:08.9]} 22. Rdc1
{[%clk 0:01:08.8]} 22... Rdc8 {[%clk 0:01:06.2]} 23. Rxc3 {[%clk 0:01:09.4]}
23... Rxc3 {[%clk 0:01:06.3]} 24. Bf3 {[%clk 0:01:10]} 24... b6 {[%clk
0:01:04.5]} 25. Ne2 {[%clk 0:01:08.2]} 25... Rc2 {[%clk 0:01:01]} 26. Nd4 {[%clk
0:01:07]} 26... Rc3 {[%clk 0:00:58.9]} 27. Ne2 {[%clk 0:01:07.2]} 27... Rc2
{[%clk 0:00:59.2]} 28. Nd4 {[%clk 0:01:07]} 28... Rc3 {[%clk 0:00:59.4]} 1/2-1/2

[Event "Early-Titled-Tuesday-Blitz-August-29-2023"]
[Site "Chess.com"]
[Date "2023.08.29"]
[Round "7"]
[White "Brave_spirit12"]
[Black "igorkovalenko"]
[Result "0-1"]
[WhiteElo "2830"]
[BlackElo "2962"]
[TimeControl "180+1"]
[EndTime "9:14:49 PDT"]
[Termination "igorkovalenko won by resignation"]

1. e4 {[%clk 0:03:00.9]} 1... c5 {[%clk 0:02:59.4]} 2. c3 {[%clk 0:03:01.2]}
2... Nf6 {[%clk 0:02:58.8]} 3. e5 {[%clk 0:03:01.3]} 3... Nd5 {[%clk 0:02:59.5]}
4. d4 {[%clk 0:03:02.2]} 4... cxd4 {[%clk 0:02:59.9]} 5. cxd4 {[%clk 0:03:03.1]}
5... d6 {[%clk 0:03:00.1]} 6. Nf3 {[%clk 0:03:03.5]} 6... dxe5 {[%clk
0:03:00.2]} 7. Nxe5 {[%clk 0:03:03.5]} 7... Nc6 {[%clk 0:03:00]} 8. Nxc6 {[%clk
0:02:55.2]} 8... bxc6 {[%clk 0:03:00.9]} 9. Nc3 {[%clk 0:02:55.9]} 9... e6
{[%clk 0:03:01]} 10. Bd3 {[%clk 0:02:56.2]} 10... Be7 {[%clk 0:03:00.8]} 11. O-O
{[%clk 0:02:56.3]} 11... O-O {[%clk 0:03:00.8]} 12. Qf3 {[%clk 0:02:56.7]} 12...
Rb8 {[%clk 0:03:00.3]} 13. Rd1 {[%clk 0:02:47.6]} 13... Bf6 {[%clk 0:02:50.1]}
14. Be4 {[%clk 0:02:41.2]} 14... Rb4 {[%clk 0:02:47.4]} 15. Ne2 {[%clk
0:02:34.9]} 15... Ba6 {[%clk 0:02:47.3]} 16. a3 {[%clk 0:02:22.6]} 16... Bxe2
{[%clk 0:02:46.4]} 17. Qxe2 {[%clk 0:02:23.5]} 17... Rxd4 {[%clk 0:02:46.3]} 18.
Rxd4 {[%clk 0:02:23.8]} 18... Bxd4 {[%clk 0:02:47.2]} 19. Bxh7+ {[%clk
0:02:24.1]} 19... Kxh7 {[%clk 0:02:45.3]} 20. Qe4+ {[%clk 0:02:24.8]} 20... Kg8
{[%clk 0:02:30.2]} 21. Qxd4 {[%clk 0:02:25.7]} 21... Qc7 {[%clk 0:02:20.9]} 22.
b4 {[%clk 0:02:25.1]} 22... e5 {[%clk 0:02:19.9]} 23. Qe4 {[%clk 0:02:23.2]}
23... f5 {[%clk 0:02:19.1]} 24. Qc4 {[%clk 0:02:19.3]} 24... Qd7 {[%clk
0:02:07.3]} 25. Bb2 {[%clk 0:02:18.3]} 25... Qe6 {[%clk 0:02:05.1]} 26. Rd1
{[%clk 0:02:15.6]} 26... Rd8 {[%clk 0:02:03.7]} 27. Qc5 {[%clk 0:02:05]} 27...
Rd7 {[%clk 0:02:02.6]} 28. Qc4 {[%clk 0:01:51.7]} 28... Kf7 {[%clk 0:02:01.9]}
29. g3 {[%clk 0:01:45.5]} 29... Kg6 {[%clk 0:02:00.9]} 30. h4 {[%clk 0:01:44.6]}
30... e4 {[%clk 0:01:57.7]} 31. Qe2 {[%clk 0:01:23.8]} 31... f4 {[%clk
0:01:55.2]} 32. Rd4 {[%clk 0:01:11.6]} 32... Re7 {[%clk 0:01:55]} 33. Rc4 {[%clk
0:00:43.5]} 33... f3 {[%clk 0:01:45.9]} 34. Qc2 {[%clk 0:00:42.9]} 34... Qh3
{[%clk 0:01:44]} 35. Rxc6+ {[%clk 0:00:35.5]} 35... Kh7 {[%clk 0:01:43.8]} 0-1

[Event "Early-Titled-Tuesday-Blitz-August-29-2023"]
[Site "Chess.com"]
[Date "2023.08.29"]
[Round "7"]
[White "MarcoRiehle"]
[Black "Let_it_be_1"]
[Result "1-0"]
[WhiteElo "2827"]
[BlackElo "2630"]
[TimeControl "180+1"]
[EndTime "9:14:56 PDT"]
[Termination "MarcoRiehle won by resignation"]

1. e4 {[%clk 0:03:00.9]} 1... e6 {[%clk 0:03:00]} 2. c4 {[%clk 0:03:00.1]} 2...
d5 {[%clk 0:03:00.4]} 3. cxd5 {[%clk 0:03:01]} 3... exd5 {[%clk 0:03:00.7]} 4.
Qb3 {[%clk 0:02:59.5]} 4... Nf6 {[%clk 0:02:53.6]} 5. e5 {[%clk 0:02:58]} 5...
Ne4 {[%clk 0:02:48]} 6. Nc3 {[%clk 0:02:57.5]} 6... Nxc3 {[%clk 0:02:45]} 7.
bxc3 {[%clk 0:02:58.4]} 7... c6 {[%clk 0:02:40.6]} 8. d4 {[%clk 0:02:57.9]} 8...
Qb6 {[%clk 0:02:31.9]} 9. Bd3 {[%clk 0:02:56.5]} 9... Be7 {[%clk 0:02:20.1]} 10.
f4 {[%clk 0:02:54.9]} 10... Qxb3 {[%clk 0:02:18.8]} 11. axb3 {[%clk 0:02:54.2]}
11... g6 {[%clk 0:02:13.6]} 12. Ne2 {[%clk 0:02:51.8]} 12... a5 {[%clk
0:02:01.3]} 13. Be3 {[%clk 0:02:49]} 13... b6 {[%clk 0:02:01.1]} 14. Kd2 {[%clk
0:02:46.8]} 14... Ba6 {[%clk 0:01:59.5]} 15. g4 {[%clk 0:02:44.6]} 15... Bxd3
{[%clk 0:01:55.4]} 16. Kxd3 {[%clk 0:02:45.5]} 16... h5 {[%clk 0:01:55.6]} 17.
h3 {[%clk 0:02:43.4]} 17... Nd7 {[%clk 0:01:50.2]} 18. f5 {[%clk 0:02:41.1]}
18... O-O-O {[%clk 0:01:31.9]} 19. Nf4 {[%clk 0:02:32.8]} 19... hxg4 {[%clk
0:01:30.7]} 20. hxg4 {[%clk 0:02:31.5]} 20... gxf5 {[%clk 0:01:22.4]} 21. gxf5
{[%clk 0:02:31.1]} 21... Rdg8 {[%clk 0:01:20.9]} 22. Rag1 {[%clk 0:02:26]} 22...
Kb7 {[%clk 0:01:05.4]} 23. Rxg8 {[%clk 0:02:22.5]} 23... Rxg8 {[%clk 0:01:05.1]}
24. Rh7 {[%clk 0:02:23]} 24... Rf8 {[%clk 0:01:00]} 25. Ne6 {[%clk 0:02:13.5]}
25... fxe6 {[%clk 0:00:47.6]} 26. Rxe7 {[%clk 0:02:12.8]} 26... Kc8 {[%clk
0:00:45]} 27. fxe6 {[%clk 0:02:12.9]} 27... Nb8 {[%clk 0:00:41.7]} 28. Bg5
{[%clk 0:02:03.1]} 28... b5 {[%clk 0:00:41.2]} 29. Ra7 {[%clk 0:01:55]} 29...
Rg8 {[%clk 0:00:31.4]} 30. e7 {[%clk 0:01:51.2]} 30... a4 {[%clk 0:00:24.4]} 31.
bxa4 {[%clk 0:01:44.3]} 31... bxa4 {[%clk 0:00:24.4]} 32. e6 {[%clk 0:01:38.1]}
1-0

[Event "Early-Titled-Tuesday-Blitz-August-29-2023"]
[Site "Chess.com"]
[Date "2023.08.29"]
[Round "7"]
[White "Vanina1989"]
[Black "ybothg"]
[Result "1-0"]
[WhiteElo "2685"]
[BlackElo "2487"]
[TimeControl "180+1"]
[EndTime "9:15:10 PDT"]
[Termination "Vanina1989 won by checkmate"]

1. d4 {[%clk 0:03:00.9]} 1... Nf6 {[%clk 0:02:59.1]} 2. c4 {[%clk 0:03:00]} 2...
g6 {[%clk 0:02:59.5]} 3. Nc3 {[%clk 0:02:59.7]} 3... d5 {[%clk 0:02:59.5]} 4.
Nf3 {[%clk 0:02:58.7]} 4... Bg7 {[%clk 0:02:59.3]} 5. Bg5 {[%clk 0:02:57]} 5...
O-O {[%clk 0:02:58.8]} 6. Bxf6 {[%clk 0:02:56.6]} 6... Bxf6 {[%clk 0:02:58.7]}
7. Nxd5 {[%clk 0:02:57]} 7... Bg7 {[%clk 0:02:56.6]} 8. Nc3 {[%clk 0:02:57.1]}
8... c5 {[%clk 0:02:56.6]} 9. d5 {[%clk 0:02:52.9]} 9... Bxc3+ {[%clk
0:02:43.6]} 10. bxc3 {[%clk 0:02:52.4]} 10... f5 {[%clk 0:02:44.5]} 11. Qc2
{[%clk 0:02:47]} 11... Nd7 {[%clk 0:02:37.6]} 12. e4 {[%clk 0:02:47]} 12... Nf6
{[%clk 0:02:36]} 13. e5 {[%clk 0:02:43.5]} 13... Nd7 {[%clk 0:02:33.5]} 14. e6
{[%clk 0:02:43.1]} 14... Nf6 {[%clk 0:02:32.9]} 15. h4 {[%clk 0:02:43.2]} 15...
Qa5 {[%clk 0:02:23.9]} 16. Bd3 {[%clk 0:02:41.6]} 16... a6 {[%clk 0:02:15.7]}
17. Ne5 {[%clk 0:02:34.1]} 17... b5 {[%clk 0:02:13.5]} 18. h5 {[%clk 0:02:24.2]}
18... Nxh5 {[%clk 0:02:10.5]} 19. Rxh5 {[%clk 0:02:14.8]} 19... gxh5 {[%clk
0:02:07.5]} 20. Qd2 {[%clk 0:02:15]} 20... Kh8 {[%clk 0:02:03.9]} 21. Kf1 {[%clk
0:02:11.9]} 21... Qc7 {[%clk 0:01:58.3]} 22. Re1 {[%clk 0:02:10.2]} 22... bxc4
{[%clk 0:01:53.1]} 23. Qh6 {[%clk 0:02:03.2]} 23... Rf6 {[%clk 0:01:43.5]} 24.
Nf7+ {[%clk 0:01:26]} 24... Kg8 {[%clk 0:01:40.8]} 25. Qg5+ {[%clk 0:00:58.3]}
25... Rg6 {[%clk 0:01:40.7]} 26. Nh6+ {[%clk 0:00:48]} 26... Kg7 {[%clk
0:01:37.5]} 27. Nxf5+ {[%clk 0:00:41.9]} 27... Kf8 {[%clk 0:01:37.5]} 28. Qxh5
{[%clk 0:00:38.6]} 28... cxd3 {[%clk 0:01:34.6]} 29. Qxh7 {[%clk 0:00:38.6]}
29... Rg8 {[%clk 0:00:58]} 30. Qf7# {[%clk 0:00:38]} 1-0

[Event "Early-Titled-Tuesday-Blitz-August-29-2023"]
[Site "Chess.com"]
[Date "2023.08.29"]
[Round "7"]
[White "suyu28"]
[Black "Orest_Vovk"]
[Result "0-1"]
[WhiteElo "2714"]
[BlackElo "2570"]
[TimeControl "180+1"]
[EndTime "9:15:22 PDT"]
[Termination "Orest_Vovk won by resignation"]

1. d4 {[%clk 0:03:00.9]} 1... g6 {[%clk 0:02:56.7]} 2. Bf4 {[%clk 0:03:01.7]}
2... Bh6 {[%clk 0:02:52.1]} 3. Bxh6 {[%clk 0:02:58.4]} 3... Nxh6 {[%clk
0:02:51.6]} 4. Qd2 {[%clk 0:02:58.2]} 4... Nf5 {[%clk 0:02:49.8]} 5. e4 {[%clk
0:02:58.1]} 5... Ng7 {[%clk 0:02:49]} 6. Qh6 {[%clk 0:02:54.4]} 6... O-O {[%clk
0:02:39.6]} 7. Nf3 {[%clk 0:02:54.6]} 7... f6 {[%clk 0:02:33.7]} 8. Bc4+ {[%clk
0:02:55.2]} 8... e6 {[%clk 0:02:31.9]} 9. Nc3 {[%clk 0:02:55.5]} 9... b6 {[%clk
0:02:23.6]} 10. O-O-O {[%clk 0:02:54]} 10... Ba6 {[%clk 0:02:23.3]} 11. Bb3
{[%clk 0:02:53.1]} 11... Qe7 {[%clk 0:02:18.3]} 12. d5 {[%clk 0:02:52]} 12...
Qf7 {[%clk 0:02:09.9]} 13. e5 {[%clk 0:02:42.6]} 13... Nf5 {[%clk 0:02:08]} 14.
Qf4 {[%clk 0:02:42.1]} 14... g5 {[%clk 0:01:45.1]} 15. Qd2 {[%clk 0:02:29.9]}
15... g4 {[%clk 0:01:41]} 16. dxe6 {[%clk 0:02:22.3]} 16... dxe6 {[%clk
0:01:39.1]} 17. Nd4 {[%clk 0:02:16.4]} 17... Nxd4 {[%clk 0:01:35.1]} 18. Qxd4
{[%clk 0:02:17.3]} 18... f5 {[%clk 0:01:34.2]} 19. h3 {[%clk 0:02:10.7]} 19...
Nc6 {[%clk 0:01:26.7]} 20. Qa4 {[%clk 0:02:09.2]} 20... Bb7 {[%clk 0:01:24.6]}
21. hxg4 {[%clk 0:02:08.1]} 21... Nxe5 {[%clk 0:01:20.8]} 22. gxf5 {[%clk
0:02:07.8]} 22... Qxf5 {[%clk 0:01:20.1]} 23. Qh4 {[%clk 0:02:04.3]} 23... Qf4+
{[%clk 0:01:15.3]} 24. Qxf4 {[%clk 0:02:04.2]} 24... Rxf4 {[%clk 0:01:16.2]} 25.
Bxe6+ {[%clk 0:02:04.4]} 25... Kg7 {[%clk 0:01:16]} 26. f3 {[%clk 0:02:05]}
26... Re8 {[%clk 0:01:06.9]} 27. Bd5 {[%clk 0:02:04.9]} 27... Bxd5 {[%clk
0:01:01.7]} 28. Nxd5 {[%clk 0:02:05]} 28... Rf7 {[%clk 0:01:01.8]} 29. Rhe1
{[%clk 0:02:05.1]} 29... Kf8 {[%clk 0:00:57.8]} 30. b3 {[%clk 0:01:55.9]} 30...
Ng6 {[%clk 0:00:57.8]} 31. Rxe8+ {[%clk 0:01:54.3]} 31... Kxe8 {[%clk
0:00:58.7]} 32. Re1+ {[%clk 0:01:52.4]} 32... Kf8 {[%clk 0:00:58.7]} 33. Kd2
{[%clk 0:01:52]} 33... Nh4 {[%clk 0:00:57.6]} 34. Re2 {[%clk 0:01:51.9]} 34...
Rd7 {[%clk 0:00:56.8]} 35. c4 {[%clk 0:01:40.8]} 35... c6 {[%clk 0:00:55.7]} 36.
Re4 {[%clk 0:01:40.5]} 36... Ng6 {[%clk 0:00:50.9]} 37. Rd4 {[%clk 0:01:39.1]}
37... cxd5 {[%clk 0:00:51.1]} 38. cxd5 {[%clk 0:01:40]} 38... Ne7 {[%clk
0:00:49.1]} 39. d6 {[%clk 0:01:40.3]} 39... Nc8 {[%clk 0:00:40.8]} 40. Ke3
{[%clk 0:01:40.2]} 40... Nxd6 {[%clk 0:00:39.2]} 41. Kf4 {[%clk 0:01:39.6]}
41... Rf7+ {[%clk 0:00:34.3]} 42. Ke5 {[%clk 0:01:39.6]} 42... Ne8 {[%clk
0:00:35.2]} 43. Rd8 {[%clk 0:01:37.7]} 43... Re7+ {[%clk 0:00:33.6]} 44. Kd5
{[%clk 0:01:37.2]} 44... Re2 {[%clk 0:00:33.5]} 45. a4 {[%clk 0:01:35.8]} 45...
Rd2+ {[%clk 0:00:33.3]} 0-1

[Event "Early-Titled-Tuesday-Blitz-August-29-2023"]
[Site "Chess.com"]
[Date "2023.08.29"]
[Round "7"]
[White "Tsyhanchuk_Stanislav"]
[Black "IljaZaragatski"]
[Result "1/2-1/2"]
[WhiteElo "2435"]
[BlackElo "2603"]
[TimeControl "180+1"]
[EndTime "9:15:22 PDT"]
[Termination "Game drawn by repetition"]

1. c4 {[%clk 0:02:55.7]} 1... e5 {[%clk 0:02:54.9]} 2. Nc3 {[%clk 0:02:56.1]}
2... Nf6 {[%clk 0:02:54.8]} 3. Nf3 {[%clk 0:02:56.4]} 3... Nc6 {[%clk
0:02:53.8]} 4. e4 {[%clk 0:02:57]} 4... Bb4 {[%clk 0:02:51.8]} 5. d3 {[%clk
0:02:56.4]} 5... d6 {[%clk 0:02:51.6]} 6. a3 {[%clk 0:02:55.2]} 6... Bxc3+
{[%clk 0:02:39.2]} 7. bxc3 {[%clk 0:02:56.1]} 7... O-O {[%clk 0:02:39.7]} 8. g3
{[%clk 0:02:51.8]} 8... Ne8 {[%clk 0:02:27.1]} 9. Bg2 {[%clk 0:02:49.6]} 9... f5
{[%clk 0:02:27.4]} 10. exf5 {[%clk 0:02:46.7]} 10... Bxf5 {[%clk 0:02:28.3]} 11.
O-O {[%clk 0:02:45.8]} 11... Nf6 {[%clk 0:02:25.9]} 12. d4 {[%clk 0:02:44.7]}
12... exd4 {[%clk 0:02:10.3]} 13. cxd4 {[%clk 0:02:37.3]} 13... d5 {[%clk
0:02:10.1]} 14. c5 {[%clk 0:02:32.2]} 14... Be4 {[%clk 0:02:09.8]} 15. Bf4
{[%clk 0:02:23.2]} 15... Nh5 {[%clk 0:01:37.8]} 16. Be5 {[%clk 0:02:16.4]} 16...
Qd7 {[%clk 0:01:25.4]} 17. Qb3 {[%clk 0:02:09.3]} 17... Qg4 {[%clk 0:01:03.7]}
18. Qxb7 {[%clk 0:01:53.5]} 18... Bxf3 {[%clk 0:00:33.4]} 19. Bxf3 {[%clk
0:01:46.4]} 19... Qxf3 {[%clk 0:00:33.8]} 20. Qxc6 {[%clk 0:01:46.8]} 20... Rae8
{[%clk 0:00:26.4]} 21. Qxc7 {[%clk 0:01:44.4]} 21... Rf7 {[%clk 0:00:25.4]} 22.
Qa5 {[%clk 0:01:29.4]} 22... Rxe5 {[%clk 0:00:20.6]} 23. dxe5 {[%clk 0:01:28.5]}
23... Nf4 {[%clk 0:00:20.4]} 24. gxf4 {[%clk 0:01:06.8]} 24... Qg4+ {[%clk
0:00:20]} 25. Kh1 {[%clk 0:01:06.2]} 25... Qf3+ {[%clk 0:00:20.9]} 26. Kg1
{[%clk 0:01:06.7]} 26... Qg4+ {[%clk 0:00:12.9]} 27. Kh1 {[%clk 0:01:06.7]}
27... Qf3+ {[%clk 0:00:13.8]} 28. Kg1 {[%clk 0:01:07.2]} 1/2-1/2

[Event "Early-Titled-Tuesday-Blitz-August-29-2023"]
[Site "Chess.com"]
[Date "2023.08.29"]
[Round "7"]
[White "Kezin_Roman"]
[Black "Frolyanov_D"]
[Result "0-1"]
[WhiteElo "2782"]
[BlackElo "2624"]
[TimeControl "180+1"]
[EndTime "9:15:23 PDT"]
[Termination "Frolyanov_D won by resignation"]

1. b3 {[%clk 0:03:00.1]} 1... Nf6 {[%clk 0:02:56.5]} 2. Bb2 {[%clk 0:03:00.7]}
2... Nc6 {[%clk 0:02:55.9]} 3. Nf3 {[%clk 0:02:58.4]} 3... d5 {[%clk 0:02:52.7]}
4. e3 {[%clk 0:02:58]} 4... Bg4 {[%clk 0:02:50.5]} 5. Bb5 {[%clk 0:02:57.6]}
5... Qd6 {[%clk 0:02:45.6]} 6. h3 {[%clk 0:02:54.9]} 6... Bxf3 {[%clk
0:02:44.7]} 7. Qxf3 {[%clk 0:02:55.5]} 7... O-O-O {[%clk 0:02:44.4]} 8. Nc3
{[%clk 0:02:45.4]} 8... a6 {[%clk 0:02:32.4]} 9. Bxc6 {[%clk 0:02:35.5]} 9...
Qxc6 {[%clk 0:02:33.3]} 10. g4 {[%clk 0:02:35.1]} 10... h6 {[%clk 0:02:19.2]}
11. O-O-O {[%clk 0:02:34.2]} 11... e6 {[%clk 0:02:17]} 12. Ne2 {[%clk 0:02:34]}
12... Be7 {[%clk 0:02:15.8]} 13. Qg2 {[%clk 0:02:29.3]} 13... Kb8 {[%clk
0:02:13.2]} 14. f4 {[%clk 0:02:27.7]} 14... Rhg8 {[%clk 0:02:11.4]} 15. h4
{[%clk 0:02:21.4]} 15... Ne4 {[%clk 0:02:10.2]} 16. g5 {[%clk 0:02:19.8]} 16...
a5 {[%clk 0:01:53.8]} 17. Nd4 {[%clk 0:02:14.1]} 17... Qa6 {[%clk 0:01:51.7]}
18. d3 {[%clk 0:02:13.3]} 18... Nd6 {[%clk 0:01:39.6]} 19. g6 {[%clk 0:02:12.4]}
19... c5 {[%clk 0:01:36.7]} 20. gxf7 {[%clk 0:02:11.9]} 20... Nxf7 {[%clk
0:01:37.6]} 21. Nf3 {[%clk 0:02:11.9]} 21... Bf6 {[%clk 0:01:27.1]} 22. Qg6
{[%clk 0:02:00.1]} 22... Bxb2+ {[%clk 0:01:20.9]} 23. Kxb2 {[%clk 0:02:00.7]}
23... Nd6 {[%clk 0:01:20.8]} 24. Ne5 {[%clk 0:01:58.5]} 24... a4 {[%clk
0:01:15.1]} 25. Kb1 {[%clk 0:01:49.6]} 25... Nb5 {[%clk 0:01:14.7]} 26. Rd2
{[%clk 0:01:18.9]} 26... Qa5 {[%clk 0:01:10.1]} 27. Rhh2 {[%clk 0:01:11]} 27...
Qc3 {[%clk 0:01:08.9]} 28. a3 {[%clk 0:00:40.8]} 28... Nxa3+ {[%clk 0:01:08.7]}
29. Ka2 {[%clk 0:00:38.7]} 29... Nxc2 {[%clk 0:01:08.8]} 30. bxa4 {[%clk
0:00:38.9]} 30... Qa1+ {[%clk 0:00:56.1]} 31. Kb3 {[%clk 0:00:38.9]} 31... Qb1+
{[%clk 0:00:54.5]} 32. Kc3 {[%clk 0:00:38]} 32... d4+ {[%clk 0:00:54.3]} 0-1

[Event "Early-Titled-Tuesday-Blitz-August-29-2023"]
[Site "Chess.com"]
[Date "2023.08.29"]
[Round "7"]
[White "ShahMatKanal"]
[Black "DanilNajdin"]
[Result "1-0"]
[WhiteElo "2446"]
[BlackElo "2542"]
[TimeControl "180+1"]
[EndTime "9:15:32 PDT"]
[Termination "ShahMatKanal won by resignation"]

1. e4 {[%clk 0:03:00.9]} 1... e5 {[%clk 0:02:57.5]} 2. Nf3 {[%clk 0:03:00.5]}
2... Nc6 {[%clk 0:02:57.9]} 3. Bb5 {[%clk 0:03:00.4]} 3... a6 {[%clk 0:02:58]}
4. Ba4 {[%clk 0:03:00.6]} 4... Nf6 {[%clk 0:02:58.4]} 5. O-O {[%clk 0:02:59.2]}
5... b5 {[%clk 0:02:59]} 6. Bb3 {[%clk 0:02:58.7]} 6... Bc5 {[%clk 0:02:59.7]}
7. d3 {[%clk 0:02:57.1]} 7... d6 {[%clk 0:02:59.8]} 8. h3 {[%clk 0:02:53.8]}
8... h6 {[%clk 0:02:59.2]} 9. c3 {[%clk 0:02:50.4]} 9... Bb6 {[%clk 0:02:53.7]}
10. a4 {[%clk 0:02:48.5]} 10... Rb8 {[%clk 0:02:51.7]} 11. Be3 {[%clk
0:02:44.2]} 11... O-O {[%clk 0:02:42]} 12. axb5 {[%clk 0:02:42.2]} 12... axb5
{[%clk 0:02:41.7]} 13. Nbd2 {[%clk 0:02:40.1]} 13... Ne7 {[%clk 0:02:35.9]} 14.
Bxb6 {[%clk 0:02:27.5]} 14... Rxb6 {[%clk 0:02:35.7]} 15. d4 {[%clk 0:02:27.9]}
15... Ng6 {[%clk 0:02:34.3]} 16. Ra8 {[%clk 0:02:11.7]} 16... Ra6 {[%clk
0:02:21.5]} 17. Rxa6 {[%clk 0:02:04.6]} 17... Bxa6 {[%clk 0:02:22.4]} 18. Re1
{[%clk 0:02:04.9]} 18... Bb7 {[%clk 0:02:09.4]} 19. Qe2 {[%clk 0:01:59.6]} 19...
Qd7 {[%clk 0:02:05.1]} 20. Qe3 {[%clk 0:01:52.2]} 20... Re8 {[%clk 0:01:48.6]}
21. dxe5 {[%clk 0:01:45.6]} 21... dxe5 {[%clk 0:01:45.5]} 22. Bc2 {[%clk
0:01:43.3]} 22... Qe7 {[%clk 0:01:22.7]} 23. Nb3 {[%clk 0:01:41.3]} 23... Nd7
{[%clk 0:01:08.2]} 24. Qa7 {[%clk 0:01:39.1]} 24... Bc6 {[%clk 0:01:00.2]} 25.
Qxc7 {[%clk 0:01:30.8]} 25... Ba8 {[%clk 0:00:58]} 26. Rd1 {[%clk 0:01:27.2]}
26... Nf6 {[%clk 0:00:54.4]} 27. Qxe7 {[%clk 0:01:26.4]} 27... Nxe7 {[%clk
0:00:48.5]} 28. Nxe5 {[%clk 0:01:26.2]} 28... Nxe4 {[%clk 0:00:42.2]} 29. Nd4
{[%clk 0:01:21.9]} 29... Rb8 {[%clk 0:00:28.2]} 30. Bb3 {[%clk 0:01:19.2]} 30...
Bd5 {[%clk 0:00:21.2]} 31. Bxd5 {[%clk 0:01:14.1]} 31... Nxd5 {[%clk 0:00:22.1]}
32. Ndc6 {[%clk 0:01:13.9]} 32... Ndxc3 {[%clk 0:00:18.1]} 33. bxc3 {[%clk
0:01:11.6]} 1-0